[Event "Titled Tuesday Blitz October 25 Early 2022"]
[White "Salgado Lopez, Ivan"]
[Black "Perez Gormaz, Matias"]
[WhiteFideId "2257327"]
[BlackFideId "3406342"]
[WhiteElo "2594"]
[BlackElo "2341"]
[Result "1-0"]
[Round "08"]
[TimeControl "180+1"]
[Date "2022.10.25"]
[WhiteClock "0:00:35"]
[BlackClock "0:00:02"]

1. d4 {[%clk 0:03:00]}  d5 {[%clk 0:03:00]} 2. Nf3 {[%clk 0:03:00]}  e6 {[%clk 0:03:00]} 3. Bg5 {[%clk 0:02:58]}  Nf6 {[%clk 0:02:57]} 4. e3 {[%clk 0:02:58]}  h6 {[%clk 0:02:56]} 5. Bh4 {[%clk 0:02:58]}  c5 {[%clk 0:02:54]} 6. Nbd2 {[%clk 0:02:58]}  Qb6 {[%clk 0:02:54]} 7. Rb1 {[%clk 0:02:57]}  Nc6 {[%clk 0:02:54]} 8. c3 {[%clk 0:02:58]}  g5 {[%clk 0:02:53]} 9. Bg3 {[%clk 0:02:58]}  Nh5 {[%clk 0:02:54]} 10. Be5 {[%clk 0:02:58]}  Nxe5 {[%clk 0:02:51]} 11. Nxe5 {[%clk 0:02:57]}  Nf6 {[%clk 0:02:48]} 12. Bd3 {[%clk 0:02:55]}  Bd6 {[%clk 0:02:45]} 13. O-O {[%clk 0:02:52]}  Qc7 {[%clk 0:02:43]} 14. f4 {[%clk 0:02:49]}  gxf4 {[%clk 0:02:42]} 15. exf4 {[%clk 0:02:49]}  Qb6 {[%clk 0:02:35]} 16. Ndf3 {[%clk 0:02:43]}  Bd7 {[%clk 0:02:22]} 17. Kh1 {[%clk 0:02:41]}  Bb5 {[%clk 0:02:13]} 18. Bxb5+ {[%clk 0:02:20]}  Qxb5 {[%clk 0:02:14]} 19. dxc5 {[%clk 0:02:16]}  Qxc5 {[%clk 0:02:07]} 20. Qa4+ {[%clk 0:02:12]}  Ke7 {[%clk 0:02:02]} 21. Rbe1 {[%clk 0:02:12]}  b5 {[%clk 0:01:56]} 22. Qc2 {[%clk 0:01:59]}  Rhg8 {[%clk 0:01:46]} 23. Nd4 {[%clk 0:01:49]}  Rac8 {[%clk 0:01:41]} 24. Qe2 {[%clk 0:01:37]}  Ne4 {[%clk 0:01:22]} 25. Qh5 {[%clk 0:01:34]}  Rg7 {[%clk 0:01:13]} 26. Qh4+ {[%clk 0:01:26]}  f6 {[%clk 0:00:57]} 27. Qh3 {[%clk 0:01:18]}  f5 {[%clk 0:00:46]} 28. Qh4+ {[%clk 0:01:15]}  Nf6 {[%clk 0:00:28]} 29. Nxf5+ {[%clk 0:01:12]}  exf5 {[%clk 0:00:27]} 30. Nd3+ {[%clk 0:01:11]}  Kf7 {[%clk 0:00:27]} 31. Nxc5 {[%clk 0:01:11]}  Bxc5 {[%clk 0:00:28]} 32. Re5 {[%clk 0:01:10]}  Rg4 {[%clk 0:00:14]} 33. Qxh6 {[%clk 0:01:04]}  Rg6 {[%clk 0:00:14]} 34. Qh3 {[%clk 0:01:02]}  Rcg8 {[%clk 0:00:10]} 35. Rxf5 {[%clk 0:01:00]}  Ke7 {[%clk 0:00:05]} 36. Re1+ {[%clk 0:00:55]}  Kd6 {[%clk 0:00:06]} 37. Rg5 {[%clk 0:00:55]}  Ne4 {[%clk 0:00:05]} 38. Rxd5+ {[%clk 0:00:47]}  Kxd5 {[%clk 0:00:02]} 39. Qd3+ {[%clk 0:00:47]}  Kc6 {[%clk 0:00:02]} 40. Qxe4+ {[%clk 0:00:47]}  Kb6 {[%clk 0:00:02]} 41. f5 {[%clk 0:00:40]}  Rh6 {[%clk 0:00:03]} 42. h3 {[%clk 0:00:37]}  Rg5 {[%clk 0:00:02]} 43. b4 {[%clk 0:00:35]}  Bd6 {[%clk 0:00:01]} 44. Qe3+ {[%clk 0:00:35]}  Kc6 {[%clk 0:00:02]} 45. Qxg5 {[%clk 0:00:35]} 1-0


[Site "https://www.chess.com"]

[Event "Titled Tuesday Blitz October 25 Early 2022"]
[White "Sanal, Vahap"]
[Black "Beerdsen, Thomas"]
[WhiteFideId "6300545"]
[BlackFideId "1030108"]
[WhiteElo "2574"]
[BlackElo "2567"]
[Result "1-0"]
[Round "08"]
[TimeControl "180+1"]
[Date "2022.10.25"]
[WhiteClock "0:00:35"]
[BlackClock "0:00:34"]

1. d4 {[%clk 0:03:00]}  d5 {[%clk 0:02:58]} 2. Nf3 {[%clk 0:02:58]}  Nc6 {[%clk 0:02:58]} 3. g3 {[%clk 0:02:57]}  Bf5 {[%clk 0:02:57]} 4. Bg2 {[%clk 0:02:56]}  e6 {[%clk 0:02:57]} 5. O-O {[%clk 0:02:55]}  Nf6 {[%clk 0:02:58]} 6. c4 {[%clk 0:02:50]}  Bd6 {[%clk 0:02:57]} 7. Nc3 {[%clk 0:02:50]}  a6 {[%clk 0:02:58]} 8. Bg5 {[%clk 0:02:49]}  Be7 {[%clk 0:02:44]} 9. Ne5 {[%clk 0:02:31]}  O-O {[%clk 0:02:36]} 10. Nxc6 {[%clk 0:02:22]}  bxc6 {[%clk 0:02:37]} 11. Qa4 {[%clk 0:02:22]}  Rb8 {[%clk 0:02:34]} 12. b3 {[%clk 0:02:14]}  dxc4 {[%clk 0:02:28]} 13. Qxc4 {[%clk 0:02:07]}  Rb4 {[%clk 0:02:17]} 14. Qxc6 {[%clk 0:02:01]}  Rxd4 {[%clk 0:02:09]} 15. Qxa6 {[%clk 0:01:58]}  h6 {[%clk 0:02:04]} 16. Be3 {[%clk 0:01:55]}  Rd6 {[%clk 0:02:04]} 17. Qc4 {[%clk 0:01:55]}  Ng4 {[%clk 0:02:04]} 18. Bc5 {[%clk 0:01:54]}  Rd2 {[%clk 0:01:55]} 19. Bxe7 {[%clk 0:01:51]}  Qxe7 {[%clk 0:01:55]} 20. Qf4 {[%clk 0:01:44]}  Rfd8 {[%clk 0:01:53]} 21. Rac1 {[%clk 0:01:27]}  R8d4 {[%clk 0:01:50]} 22. Qf3 {[%clk 0:01:25]}  Ne5 {[%clk 0:01:41]} 23. Qa8+ {[%clk 0:01:24]}  Rd8 {[%clk 0:01:42]} 24. Qa5 {[%clk 0:01:22]}  Ng4 {[%clk 0:01:39]} 25. h3 {[%clk 0:01:16]}  Nf6 {[%clk 0:01:31]} 26. e4 {[%clk 0:01:13]}  Bg6 {[%clk 0:01:30]} 27. e5 {[%clk 0:01:11]}  Nh5 {[%clk 0:01:25]} 28. Ne4 {[%clk 0:01:09]}  Bxe4 {[%clk 0:01:22]} 29. Bxe4 {[%clk 0:01:08]}  Qg5 {[%clk 0:01:21]} 30. Rc3 {[%clk 0:00:50]}  Nf4 {[%clk 0:01:08]} 31. h4 {[%clk 0:00:46]}  Qg4 {[%clk 0:01:06]} 32. Bf3 {[%clk 0:00:46]}  Nh3+ {[%clk 0:00:44]} 33. Kh2 {[%clk 0:00:45]}  Qf5 {[%clk 0:00:42]} 34. g4 {[%clk 0:00:45]}  Qf4+ {[%clk 0:00:41]} 35. Kxh3 {[%clk 0:00:45]}  R8d3 {[%clk 0:00:42]} 36. Rxd3 {[%clk 0:00:40]}  Rxd3 {[%clk 0:00:43]} 37. Qa8+ {[%clk 0:00:40]}  Kh7 {[%clk 0:00:44]} 38. Kg2 {[%clk 0:00:40]}  Rd4 {[%clk 0:00:37]} 39. Re1 {[%clk 0:00:35]}  h5 {[%clk 0:00:34]} 40. Re4 {[%clk 0:00:35]} 1-0


[Site "https://www.chess.com"]

[Event "Titled Tuesday Blitz October 25 Early 2022"]
[White "Seliverstov, Vladimir"]
[Black "Sarana, Alexey"]
[WhiteFideId "4192036"]
[BlackFideId "24133795"]
[WhiteElo "2489"]
[BlackElo "2689"]
[Result "1-0"]
[Round "08"]
[TimeControl "180+1"]
[Date "2022.10.25"]
[WhiteClock "0:00:29"]
[BlackClock "0:00:09"]

1. d4 {[%clk 0:03:00]}  Nf6 {[%clk 0:02:59]} 2. c4 {[%clk 0:02:59]}  e6 {[%clk 0:03:00]} 3. g3 {[%clk 0:02:59]}  d5 {[%clk 0:02:59]} 4. Bg2 {[%clk 0:03:00]}  Nbd7 {[%clk 0:02:59]} 5. Qa4 {[%clk 0:02:58]}  Be7 {[%clk 0:02:54]} 6. Nc3 {[%clk 0:02:56]}  O-O {[%clk 0:02:50]} 7. cxd5 {[%clk 0:02:54]}  exd5 {[%clk 0:02:49]} 8. Nf3 {[%clk 0:02:51]}  Re8 {[%clk 0:02:41]} 9. O-O {[%clk 0:02:51]}  Nf8 {[%clk 0:02:40]} 10. Ne5 {[%clk 0:02:50]}  c6 {[%clk 0:02:40]} 11. b4 {[%clk 0:02:42]}  Ng6 {[%clk 0:02:19]} 12. b5 {[%clk 0:02:26]}  c5 {[%clk 0:01:58]} 13. Nxg6 {[%clk 0:02:10]}  hxg6 {[%clk 0:01:57]} 14. Bg5 {[%clk 0:02:09]}  Be6 {[%clk 0:01:52]} 15. dxc5 {[%clk 0:02:01]}  Bxc5 {[%clk 0:01:48]} 16. Rad1 {[%clk 0:02:00]}  d4 {[%clk 0:01:38]} 17. Bxb7 {[%clk 0:01:50]}  Qb6 {[%clk 0:01:18]} 18. Bxa8 {[%clk 0:01:43]}  dxc3 {[%clk 0:01:18]} 19. Bc6 {[%clk 0:01:41]}  Rc8 {[%clk 0:01:18]} 20. Bxf6 {[%clk 0:01:25]}  gxf6 {[%clk 0:01:18]} 21. Rc1 {[%clk 0:01:07]}  Bd4 {[%clk 0:01:14]} 22. e3 {[%clk 0:01:04]}  Be5 {[%clk 0:01:11]} 23. Rfd1 {[%clk 0:01:00]}  a6 {[%clk 0:01:08]} 24. bxa6 {[%clk 0:00:47]}  Rc7 {[%clk 0:00:36]} 25. Qb5 {[%clk 0:00:34]}  Qa7 {[%clk 0:00:26]} 26. Rd8+ {[%clk 0:00:32]}  Kg7 {[%clk 0:00:25]} 27. Ra8 {[%clk 0:00:32]}  Bc4 {[%clk 0:00:09]} 28. Rxa7 {[%clk 0:00:29]}  Bxb5 {[%clk 0:00:09]} 29. Rxc7 {[%clk 0:00:29]} 1-0


[Site "https://www.chess.com"]

[Event "Titled Tuesday Blitz October 25 Early 2022"]
[White "Andreikin, Dmitry"]
[Black "Gokerkan, Cem Kaan"]
[WhiteFideId "4158814"]
[BlackFideId "6336760"]
[WhiteElo "2736"]
[BlackElo "2365"]
[Result "1/2-1/2"]
[Round "09"]
[TimeControl "180+1"]
[Date "2022.10.25"]
[WhiteClock "0:00:17"]
[BlackClock "0:00:06"]

1. c4 {[%clk 0:03:00]}  g6 {[%clk 0:02:57]} 2. d4 {[%clk 0:03:00]}  Bg7 {[%clk 0:02:58]} 3. e4 {[%clk 0:02:58]}  d6 {[%clk 0:02:57]} 4. Nc3 {[%clk 0:02:57]}  Nf6 {[%clk 0:02:57]} 5. h3 {[%clk 0:02:56]}  O-O {[%clk 0:02:57]} 6. Be3 {[%clk 0:02:57]}  c5 {[%clk 0:02:56]} 7. Nf3 {[%clk 0:02:56]}  cxd4 {[%clk 0:02:55]} 8. Nxd4 {[%clk 0:02:57]}  Nc6 {[%clk 0:02:56]} 9. Be2 {[%clk 0:02:57]}  Nxd4 {[%clk 0:02:51]} 10. Bxd4 {[%clk 0:02:57]}  Bd7 {[%clk 0:02:52]} 11. O-O {[%clk 0:02:56]}  Bc6 {[%clk 0:02:53]} 12. Qc2 {[%clk 0:02:55]}  a5 {[%clk 0:02:52]} 13. Rfd1 {[%clk 0:02:52]}  a4 {[%clk 0:02:52]} 14. b4 {[%clk 0:02:38]}  axb3 {[%clk 0:02:51]} 15. axb3 {[%clk 0:02:38]}  Rxa1 {[%clk 0:02:30]} 16. Rxa1 {[%clk 0:02:39]}  Nd7 {[%clk 0:02:13]} 17. Bxg7 {[%clk 0:02:38]}  Kxg7 {[%clk 0:02:14]} 18. b4 {[%clk 0:02:38]}  Nf6 {[%clk 0:02:06]} 19. b5 {[%clk 0:02:13]}  Bd7 {[%clk 0:02:06]} 20. Qb2 {[%clk 0:02:10]}  Be6 {[%clk 0:01:54]} 21. Nd5 {[%clk 0:01:56]}  Bxd5 {[%clk 0:01:52]} 22. exd5 {[%clk 0:01:57]}  Qb6 {[%clk 0:01:50]} 23. Bf1 {[%clk 0:01:56]}  Re8 {[%clk 0:01:46]} 24. Re1 {[%clk 0:01:51]}  e5 {[%clk 0:01:29]} 25. dxe6 {[%clk 0:01:49]}  Rxe6 {[%clk 0:01:29]} 26. Rxe6 {[%clk 0:01:49]}  fxe6 {[%clk 0:01:30]} 27. g4 {[%clk 0:01:45]}  e5 {[%clk 0:01:28]} 28. Bg2 {[%clk 0:01:45]}  Nd7 {[%clk 0:01:07]} 29. Qd2 {[%clk 0:01:29]}  Nc5 {[%clk 0:00:51]} 30. h4 {[%clk 0:01:30]}  Qd8 {[%clk 0:00:44]} 31. h5 {[%clk 0:01:30]}  gxh5 {[%clk 0:00:36]} 32. gxh5 {[%clk 0:01:31]}  Qf6 {[%clk 0:00:36]} 33. b6 {[%clk 0:01:25]}  e4 {[%clk 0:00:15]} 34. Qd5 {[%clk 0:01:11]}  Qf4 {[%clk 0:00:08]} 35. Qd1 {[%clk 0:00:29]}  e3 {[%clk 0:00:07]} 36. fxe3 {[%clk 0:00:25]}  Qxe3+ {[%clk 0:00:08]} 37. Kh1 {[%clk 0:00:24]}  Qf4 {[%clk 0:00:09]} 38. Qe1 {[%clk 0:00:20]}  Kh6 {[%clk 0:00:07]} 39. Qd1 {[%clk 0:00:20]}  Qh4+ {[%clk 0:00:05]} 40. Kg1 {[%clk 0:00:20]}  Qf4 {[%clk 0:00:06]} 41. Qe2 {[%clk 0:00:17]}  Qd4+ {[%clk 0:00:05]} 42. Kh1 {[%clk 0:00:16]}  Qh4+ {[%clk 0:00:04]} 43. Kg1 {[%clk 0:00:17]}  Qd4+ {[%clk 0:00:05]} 44. Kh1 {[%clk 0:00:16]}  Qh4+ {[%clk 0:00:05]} 45. Kg1 {[%clk 0:00:17]}  Qd4+ {[%clk 0:00:06]} 1/2-1/2


[Site "https://www.chess.com"]

[Event "Titled Tuesday Blitz October 25 Early 2022"]
[White "Bacrot, Etienne"]
[Black "Melikyan, Gnel"]
[WhiteFideId "605506"]
[BlackFideId "54109990"]
[WhiteElo "2666"]
[BlackElo "2138"]
[Result "0-1"]
[Round "09"]
[TimeControl "180+1"]
[Date "2022.10.25"]
[WhiteClock "0:00:06"]
[BlackClock "0:00:12"]

1. Nf3 {[%clk 0:02:58]}  Nf6 {[%clk 0:02:56]} 2. g3 {[%clk 0:02:58]}  g6 {[%clk 0:02:53]} 3. Bg2 {[%clk 0:02:58]}  Bg7 {[%clk 0:02:53]} 4. O-O {[%clk 0:02:59]}  O-O {[%clk 0:02:54]} 5. c4 {[%clk 0:02:59]}  d6 {[%clk 0:02:53]} 6. Nc3 {[%clk 0:02:59]}  c6 {[%clk 0:02:52]} 7. d4 {[%clk 0:03:00]}  Qb6 {[%clk 0:02:52]} 8. h3 {[%clk 0:02:58]}  Qa6 {[%clk 0:02:52]} 9. b3 {[%clk 0:02:57]}  b5 {[%clk 0:02:51]} 10. cxb5 {[%clk 0:02:34]}  cxb5 {[%clk 0:02:50]} 11. e4 {[%clk 0:02:34]}  Bb7 {[%clk 0:02:45]} 12. e5 {[%clk 0:02:27]}  Nd5 {[%clk 0:02:40]} 13. Ne4 {[%clk 0:02:20]}  Ne3 {[%clk 0:02:31]} 14. Bxe3 {[%clk 0:02:16]}  Bxe4 {[%clk 0:02:31]} 15. Rc1 {[%clk 0:01:50]}  dxe5 {[%clk 0:01:56]} 16. dxe5 {[%clk 0:01:48]}  Nc6 {[%clk 0:01:50]} 17. e6 {[%clk 0:01:45]}  f5 {[%clk 0:01:38]} 18. Qe2 {[%clk 0:01:20]}  Nb4 {[%clk 0:01:27]} 19. Rfd1 {[%clk 0:01:11]}  Nxa2 {[%clk 0:01:24]} 20. Ra1 {[%clk 0:00:45]}  Nc3 {[%clk 0:01:02]} 21. Rxa6 {[%clk 0:00:43]}  Nxe2+ {[%clk 0:01:02]} 22. Kh2 {[%clk 0:00:33]}  f4 {[%clk 0:00:40]} 23. gxf4 {[%clk 0:00:24]}  Nxf4 {[%clk 0:00:38]} 24. Bh1 {[%clk 0:00:24]}  Nd5 {[%clk 0:00:35]} 25. Bc5 {[%clk 0:00:12]}  Nc3 {[%clk 0:00:31]} 26. Rd7 {[%clk 0:00:10]}  Bxf3 {[%clk 0:00:29]} 27. Bxf3 {[%clk 0:00:10]}  Rxf3 {[%clk 0:00:29]} 28. Rxe7 {[%clk 0:00:10]}  Ne4 {[%clk 0:00:17]} 29. Raxa7 {[%clk 0:00:07]}  Rxa7 {[%clk 0:00:16]} 30. Bxa7 {[%clk 0:00:06]}  Bf8 {[%clk 0:00:14]} 31. Re8 {[%clk 0:00:06]}  Nf6 {[%clk 0:00:13]} 32. Rb8 {[%clk 0:00:04]}  Kg7 {[%clk 0:00:10]} 33. Rb7+ {[%clk 0:00:04]}  Kh6 {[%clk 0:00:09]} 34. e7 {[%clk 0:00:04]}  Bxe7 {[%clk 0:00:09]} 35. Rxe7 {[%clk 0:00:05]}  Rxb3 {[%clk 0:00:09]} 36. Be3+ {[%clk 0:00:05]}  g5 {[%clk 0:00:10]} 37. Re6 {[%clk 0:00:04]}  Kg6 {[%clk 0:00:10]} 38. Kg2 {[%clk 0:00:04]}  Kf5 {[%clk 0:00:09]} 39. Rb6 {[%clk 0:00:04]}  b4 {[%clk 0:00:09]} 40. Rb5+ {[%clk 0:00:04]}  Ke6 {[%clk 0:00:08]} 41. Rb6+ {[%clk 0:00:03]}  Kf5 {[%clk 0:00:07]} 42. Rb5+ {[%clk 0:00:04]}  Ke6 {[%clk 0:00:08]} 43. Bxg5 {[%clk 0:00:04]}  Nd5 {[%clk 0:00:08]} 44. Bh6 {[%clk 0:00:04]}  Rb1 {[%clk 0:00:08]} 45. h4 {[%clk 0:00:05]}  b3 {[%clk 0:00:08]} 46. Bg7 {[%clk 0:00:05]}  Nf4+ {[%clk 0:00:07]} 47. Kf3 {[%clk 0:00:05]}  Nd5 {[%clk 0:00:06]} 48. h5 {[%clk 0:00:05]}  Rh1 {[%clk 0:00:06]} 49. h6 {[%clk 0:00:05]}  Rh3+ {[%clk 0:00:06]} 50. Ke2 {[%clk 0:00:04]}  Nc3+ {[%clk 0:00:06]} 51. Bxc3 {[%clk 0:00:05]}  Rxc3 {[%clk 0:00:06]} 52. Rb7 {[%clk 0:00:05]}  Kf6 {[%clk 0:00:07]} 53. Kd2 {[%clk 0:00:05]}  Rc2+ {[%clk 0:00:07]} 54. Ke3 {[%clk 0:00:05]}  b2 {[%clk 0:00:07]} 55. f4 {[%clk 0:00:05]}  Kg6 {[%clk 0:00:08]} 56. Rb6+ {[%clk 0:00:05]}  Kh5 {[%clk 0:00:07]} 57. Ke4 {[%clk 0:00:05]}  Re2+ {[%clk 0:00:08]} 58. Kf3 {[%clk 0:00:05]}  Rc2 {[%clk 0:00:07]} 59. f5 {[%clk 0:00:05]}  Kg5 {[%clk 0:00:07]} 60. f6 {[%clk 0:00:05]}  Kxh6 {[%clk 0:00:07]} 61. Ke4 {[%clk 0:00:05]}  Kg6 {[%clk 0:00:08]} 62. Ke5 {[%clk 0:00:06]}  Re2+ {[%clk 0:00:09]} 63. Kd5 {[%clk 0:00:06]}  h5 {[%clk 0:00:09]} 64. Kd4 {[%clk 0:00:04]}  h4 {[%clk 0:00:09]} 65. Kd3 {[%clk 0:00:05]}  Rf2 {[%clk 0:00:10]} 66. Ke3 {[%clk 0:00:06]}  Rh2 {[%clk 0:00:09]} 67. Kf4 {[%clk 0:00:05]}  Rg2 {[%clk 0:00:09]} 68. Kf3 {[%clk 0:00:05]}  h3 {[%clk 0:00:10]} 69. f7+ {[%clk 0:00:03]}  Kxf7 {[%clk 0:00:10]} 70. Rb5 {[%clk 0:00:03]}  Kg6 {[%clk 0:00:11]} 71. Rb6+ {[%clk 0:00:03]}  Kf5 {[%clk 0:00:11]} 72. Rb5+ {[%clk 0:00:03]}  Ke6 {[%clk 0:00:12]} 73. Rb4 {[%clk 0:00:04]}  Kd5 {[%clk 0:00:12]} 74. Rb5+ {[%clk 0:00:05]}  Kc4 {[%clk 0:00:12]} 75. Rxb2 {[%clk 0:00:06]}  Rxb2 {[%clk 0:00:12]} 0-1


[Site "https://www.chess.com"]

[Event "Titled Tuesday Blitz October 25 Early 2022"]
[White "Belov, Vladimir"]
[Black "Madaminov, Mukhiddin"]
[WhiteFideId "4132394"]
[BlackFideId "14210703"]
[WhiteElo "2498"]
[BlackElo "2341"]
[Result "0-1"]
[Round "09"]
[TimeControl "180+1"]
[Date "2022.10.25"]
[WhiteClock "0:00:04"]
[BlackClock "0:00:06"]

1. e4 {[%clk 0:03:00]}  e5 {[%clk 0:03:00]} 2. Nf3 {[%clk 0:03:01]}  Nc6 {[%clk 0:03:00]} 3. Bb5 {[%clk 0:03:01]}  a6 {[%clk 0:03:00]} 4. Ba4 {[%clk 0:03:02]}  Nf6 {[%clk 0:03:01]} 5. O-O {[%clk 0:03:02]}  Nxe4 {[%clk 0:03:01]} 6. d4 {[%clk 0:03:02]}  b5 {[%clk 0:03:02]} 7. Bb3 {[%clk 0:03:03]}  d5 {[%clk 0:03:02]} 8. dxe5 {[%clk 0:03:03]}  Be6 {[%clk 0:03:03]} 9. Nbd2 {[%clk 0:03:03]}  Be7 {[%clk 0:03:03]} 10. c3 {[%clk 0:03:03]}  O-O {[%clk 0:03:03]} 11. Bc2 {[%clk 0:03:03]}  f5 {[%clk 0:03:03]} 12. Nb3 {[%clk 0:02:57]}  Qd7 {[%clk 0:03:02]} 13. Nbd4 {[%clk 0:02:51]}  Nxd4 {[%clk 0:03:02]} 14. Nxd4 {[%clk 0:02:49]}  c5 {[%clk 0:03:01]} 15. Nxe6 {[%clk 0:02:47]}  Qxe6 {[%clk 0:03:02]} 16. f3 {[%clk 0:02:44]}  Ng5 {[%clk 0:03:01]} 17. a4 {[%clk 0:02:42]}  Rad8 {[%clk 0:02:50]} 18. axb5 {[%clk 0:02:40]}  axb5 {[%clk 0:02:48]} 19. Ra7 {[%clk 0:02:35]}  c4 {[%clk 0:02:41]} 20. Be3 {[%clk 0:02:06]}  Rd7 {[%clk 0:02:21]} 21. Rxd7 {[%clk 0:01:53]}  Qxd7 {[%clk 0:02:20]} 22. Qd2 {[%clk 0:01:50]}  Nf7 {[%clk 0:01:01]} 23. f4 {[%clk 0:01:45]}  Qe6 {[%clk 0:00:47]} 24. Bd1 {[%clk 0:01:16]}  Rd8 {[%clk 0:00:34]} 25. Bf3 {[%clk 0:01:16]}  g5 {[%clk 0:00:29]} 26. g3 {[%clk 0:01:09]}  gxf4 {[%clk 0:00:29]} 27. gxf4 {[%clk 0:01:09]}  Nh8 {[%clk 0:00:30]} 28. Rd1 {[%clk 0:01:07]}  Kf8 {[%clk 0:00:13]} 29. Bxd5 {[%clk 0:01:05]}  Qh6 {[%clk 0:00:11]} 30. Kh1 {[%clk 0:00:48]}  Ng6 {[%clk 0:00:11]} 31. Rg1 {[%clk 0:00:49]}  Qh3 {[%clk 0:00:09]} 32. Bb6 {[%clk 0:00:44]}  Rd7 {[%clk 0:00:03]} 33. e6 {[%clk 0:00:40]}  Rd6 {[%clk 0:00:04]} 34. Bc7 {[%clk 0:00:34]}  Qf3+ {[%clk 0:00:02]} 35. Bxf3 {[%clk 0:00:34]}  Rxd2 {[%clk 0:00:03]} 36. Rg2 {[%clk 0:00:27]}  Rd3 {[%clk 0:00:03]} 37. Bh5 {[%clk 0:00:23]}  Bf6 {[%clk 0:00:02]} 38. Bxg6 {[%clk 0:00:15]}  hxg6 {[%clk 0:00:03]} 39. Rxg6 {[%clk 0:00:14]}  Ke7 {[%clk 0:00:03]} 40. Kg2 {[%clk 0:00:04]}  Rd2+ {[%clk 0:00:04]} 41. Kg3 {[%clk 0:00:04]}  Rxb2 {[%clk 0:00:05]} 42. Bd6+ {[%clk 0:00:04]}  Kxd6 {[%clk 0:00:04]} 43. Rxf6 {[%clk 0:00:05]}  Rb3 {[%clk 0:00:04]} 44. Rg6 {[%clk 0:00:05]}  Rxc3+ {[%clk 0:00:04]} 45. Kh4 {[%clk 0:00:04]}  b4 {[%clk 0:00:05]} 46. e7+ {[%clk 0:00:05]}  Kxe7 {[%clk 0:00:06]} 47. Rb6 {[%clk 0:00:05]}  b3 {[%clk 0:00:06]} 48. Kg5 {[%clk 0:00:06]}  Rh3 {[%clk 0:00:05]} 49. Kxf5 {[%clk 0:00:06]}  Rxh2 {[%clk 0:00:06]} 50. Ke4 {[%clk 0:00:05]}  Rc2 {[%clk 0:00:04]} 51. f5 {[%clk 0:00:05]}  b2 {[%clk 0:00:05]} 52. Kd4 {[%clk 0:00:05]}  c3 {[%clk 0:00:05]} 53. f6+ {[%clk 0:00:05]}  Kf7 {[%clk 0:00:05]} 54. Ke5 {[%clk 0:00:06]}  Rc1 {[%clk 0:00:05]} 55. Rb7+ {[%clk 0:00:06]}  Kg6 {[%clk 0:00:05]} 56. f7 {[%clk 0:00:06]}  Rf1 {[%clk 0:00:05]} 57. Kd4 {[%clk 0:00:05]}  Rxf7 {[%clk 0:00:05]} 58. Rb6+ {[%clk 0:00:04]}  Rf6 {[%clk 0:00:06]} 0-1


[Site "https://www.chess.com"]

[Event "Titled Tuesday Blitz October 25 Early 2022"]
[White "Costachi, Mihnea"]
[Black "Czernek, Tymon"]
[WhiteFideId "1217518"]
[BlackFideId "1199510"]
[WhiteElo "2437"]
[BlackElo "2240"]
[Result "1-0"]
[Round "09"]
[TimeControl "180+1"]
[Date "2022.10.25"]
[WhiteClock "0:00:18"]
[BlackClock "0:00:08"]

1. Nc3 {[%clk 0:03:00]}  Nf6 {[%clk 0:02:59]} 2. e4 {[%clk 0:02:59]}  d6 {[%clk 0:02:56]} 3. d4 {[%clk 0:02:59]}  g6 {[%clk 0:02:57]} 4. g3 {[%clk 0:02:58]}  Bg7 {[%clk 0:02:56]} 5. Bg2 {[%clk 0:02:58]}  O-O {[%clk 0:02:57]} 6. Nf3 {[%clk 0:02:59]}  c5 {[%clk 0:02:58]} 7. O-O {[%clk 0:02:57]}  Nbd7 {[%clk 0:02:55]} 8. e5 {[%clk 0:02:52]}  Ne8 {[%clk 0:02:40]} 9. exd6 {[%clk 0:02:36]}  exd6 {[%clk 0:02:34]} 10. Re1 {[%clk 0:02:33]}  Nc7 {[%clk 0:02:29]} 11. Bf4 {[%clk 0:02:24]}  cxd4 {[%clk 0:02:01]} 12. Nxd4 {[%clk 0:02:21]}  Ne5 {[%clk 0:02:02]} 13. Ndb5 {[%clk 0:02:18]}  Nxb5 {[%clk 0:01:56]} 14. Nxb5 {[%clk 0:02:19]}  Nc4 {[%clk 0:01:53]} 15. Nxd6 {[%clk 0:02:13]}  Nxb2 {[%clk 0:01:48]} 16. Qf3 {[%clk 0:02:01]}  Be6 {[%clk 0:01:37]} 17. Qxb7 {[%clk 0:01:44]}  g5 {[%clk 0:00:59]} 18. Qxa8 {[%clk 0:01:38]}  Qxa8 {[%clk 0:00:58]} 19. Bxa8 {[%clk 0:01:37]}  gxf4 {[%clk 0:00:59]} 20. Bg2 {[%clk 0:01:19]}  fxg3 {[%clk 0:00:58]} 21. hxg3 {[%clk 0:01:18]}  Rd8 {[%clk 0:00:58]} 22. Nb7 {[%clk 0:01:16]}  Rd2 {[%clk 0:00:57]} 23. Nc5 {[%clk 0:01:14]}  Bd4 {[%clk 0:00:52]} 24. Ne4 {[%clk 0:01:12]}  Rxc2 {[%clk 0:00:52]} 25. Rac1 {[%clk 0:01:12]}  Rxc1 {[%clk 0:00:32]} 26. Rxc1 {[%clk 0:01:13]}  Bxa2 {[%clk 0:00:26]} 27. Rc8+ {[%clk 0:01:08]}  Kg7 {[%clk 0:00:26]} 28. Nd6 {[%clk 0:01:05]}  Be6 {[%clk 0:00:25]} 29. Rc2 {[%clk 0:00:53]}  a5 {[%clk 0:00:19]} 30. Nb5 {[%clk 0:00:49]}  Bf6 {[%clk 0:00:18]} 31. Nc3 {[%clk 0:00:45]}  Nd3 {[%clk 0:00:17]} 32. Rd2 {[%clk 0:00:40]}  Bxc3 {[%clk 0:00:16]} 33. Rxd3 {[%clk 0:00:40]}  Bb2 {[%clk 0:00:16]} 34. Bd5 {[%clk 0:00:33]}  a4 {[%clk 0:00:14]} 35. Bxe6 {[%clk 0:00:27]}  fxe6 {[%clk 0:00:15]} 36. Rd6 {[%clk 0:00:28]}  a3 {[%clk 0:00:14]} 37. Ra6 {[%clk 0:00:27]}  Kf7 {[%clk 0:00:14]} 38. f4 {[%clk 0:00:25]}  Ke7 {[%clk 0:00:14]} 39. Kf2 {[%clk 0:00:25]}  Kd7 {[%clk 0:00:14]} 40. Ke3 {[%clk 0:00:25]}  Kc7 {[%clk 0:00:15]} 41. Kd3 {[%clk 0:00:22]}  Kb7 {[%clk 0:00:15]} 42. Ra4 {[%clk 0:00:23]}  Kc6 {[%clk 0:00:15]} 43. Kc4 {[%clk 0:00:22]}  Kb6 {[%clk 0:00:14]} 44. Kb3 {[%clk 0:00:19]}  Kc5 {[%clk 0:00:14]} 45. Ra7 {[%clk 0:00:19]}  h6 {[%clk 0:00:13]} 46. Rh7 {[%clk 0:00:20]}  Kd5 {[%clk 0:00:13]} 47. Rxh6 {[%clk 0:00:20]}  e5 {[%clk 0:00:12]} 48. Rh5 {[%clk 0:00:20]}  Ke4 {[%clk 0:00:12]} 49. f5 {[%clk 0:00:19]}  Kf3 {[%clk 0:00:10]} 50. f6 {[%clk 0:00:19]}  e4 {[%clk 0:00:11]} 51. f7 {[%clk 0:00:19]}  Bg7 {[%clk 0:00:12]} 52. Rf5+ {[%clk 0:00:16]}  Kxg3 {[%clk 0:00:10]} 53. Rg5+ {[%clk 0:00:17]}  Kf2 {[%clk 0:00:08]} 54. Rxg7 {[%clk 0:00:18]}  e3 {[%clk 0:00:08]} 55. f8=Q+ {[%clk 0:00:18]} 1-0


[Site "https://www.chess.com"]